bitfinex-derivatives/quotes_BTCF0:USTF0_20260214
["timestamp","ask_amount","ask_price","bid_price","bid_amount"]
[1771090201911,0.014319,69864.0,69862.0,0.01436]
[1771090202117,0.01432,69864.0,69862.0,0.01436]
[1771090202313,0.014319,69865.0,69862.0,0.01436]
[1771090202717,0.014319,69865.0,69860.0,0.01442369]
[1771090202918,0.014319,69865.0,69860.0,0.02878369]
[1771090203823,0.014319,69865.0,69861.0,0.01432]
[1771090204825,0.028678,69869.0,69864.0,0.014319]
[1771090205018,0.014318,69872.0,69863.0,0.01432]
[1771090205218,0.014319,69868.0,69863.0,0.01432]
[1771090205421,0.014318,69870.0,69863.0,0.01432]
[1771090205617,0.014319,69868.0,69863.0,0.01432]
[1771090205822,0.014318,69872.0,69863.0,0.01432]
[1771090206022,0.028679,69868.0,69863.0,0.01432]
[1771090206222,0.08973168,69876.0,69863.0,0.01432]
[1771090206223,0.014318,69871.0,69863.0,0.01432]
[1771090206422,0.10404868,69875.0,69863.0,0.01432]
[1771090206921,0.01436,69874.0,69863.0,0.01432]
[1771090207223,0.01436,69874.0,69860.0,0.02878369]
[1771090207224,0.10409168,69874.0,69860.0,0.01446369]
[1771090207627,0.10409168,69874.0,69853.0,0.014322]
[1771090207829,0.10409168,69874.0,69854.0,0.01436]
[1771090208036,0.10409168,69874.0,69855.0,0.014321]
[1771090208229,0.01436,69874.0,69863.0,0.01432]
[1771090208435,0.01436,69874.0,69861.0,0.01432]
[1771090208626,0.00010369,69873.0,69861.0,0.01432]
[1771090208929,0.08983537,69873.0,69860.0,0.01432]
[1771090211435,0.08983537,69873.0,69863.0,0.01432]
[1771090211636,0.08983537,69873.0,69862.0,0.01432]
[1771090211837,0.00010369,69873.0,69859.0,0.02868]
[1771090212033,0.00010369,69873.0,69862.0,0.01432]
[1771090212335,0.00010369,69873.0,69863.0,0.01436]
[1771090215234,4.4e-05,69874.0,69866.0,0.10273757]
[1771090215537,0.1576,69877.0,69870.0,0.014318]
[1771090215725,0.01436,69877.0,69870.0,0.014318]
[1771090215933,0.14324,69881.0,69870.0,0.014318]
[1771090216132,0.23475943,69881.0,69867.0,0.01436]
[1771090216326,0.10587943,69880.0,69867.0,0.01436]
[1771090219940,0.10587943,69880.0,69867.0,0.028679]
[1771090221738,0.10587943,69880.0,69867.0,0.01436]
[1771090225327,0.07580456,69880.0,69867.0,0.01436]
[1771090227237,0.01436,69880.0,69870.0,0.014318]
[1771090227445,0.01436,69880.0,69868.0,0.014319]
[1771090227931,0.01436,69880.0,69869.0,0.014318]
[1771090229238,0.01436,69880.0,69868.0,0.08841857]
[1771090229441,0.14354377,69920.0,69888.0,0.014314]
[1771090229442,0.09151943,69897.0,69888.0,0.014314]
[1771090229639,0.14324,69893.0,69888.0,0.014315]
[1771090229838,0.01436,69892.0,69887.0,0.014315]
[1771090230137,0.01436,69892.0,69889.0,0.014314]
[1771090230342,0.01436,69892.0,69885.0,0.014315]
[1771090231544,0.01436,69892.0,69881.0,0.01436]
[1771090231752,0.01436,69892.0,69881.0,0.028676]
[1771090232242,0.01436,69892.0,69883.0,0.014315]
[1771090233347,0.01436,69892.0,69881.0,0.01436]
[1771090233348,0.01436,69892.0,69882.0,0.014316]
[1771090233943,0.01436,69892.0,69883.0,0.014316]
[1771090234447,0.01436,69892.0,69885.0,0.014315]
[1771090234647,0.01436,69892.0,69888.0,0.014314]
[1771090234948,0.01436,69892.0,69884.0,0.014315]
[1771090234949,0.01436,69892.0,69886.0,0.014315]
[1771090235253,0.01436,69892.0,69887.0,0.014315]
[1771090235752,0.01436,69892.0,69886.0,0.014315]
[1771090236048,0.01436,69892.0,69883.0,0.014315]
[1771090236248,0.01436,69892.0,69881.0,0.01436]
[1771090237447,0.01436,69892.0,69881.0,0.028676]
[1771090237646,0.01436,69892.0,69882.0,0.014316]
[1771090237854,0.01436,69892.0,69884.0,0.014315]
[1771090238256,0.01436,69892.0,69883.0,0.014315]
[1771090239555,0.01436,69892.0,69882.0,0.014316]
[1771090240055,0.01436,69892.0,69883.0,0.014316]
[1771090241558,0.01436,69892.0,69882.0,0.014316]
[1771090242059,0.01436,69892.0,69883.0,0.014315]
[1771090242958,0.01436,69892.0,69882.0,0.014316]
[1771090243158,0.01436,69892.0,69886.0,0.014315]
[1771090244059,0.01436,69892.0,69885.0,0.01436]
[1771090244556,0.01436,69892.0,69885.0,0.028675]
[1771090246055,0.01436,69896.0,69885.0,0.028675]
[1771090246260,0.01436,69896.0,69886.0,0.014315]
[1771090246461,0.10180374,69896.0,69885.0,0.028675]
[1771090246661,0.10180374,69896.0,69885.0,0.01436]
[1771090247262,0.10180374,69896.0,69885.0,0.028675]
[1771090247462,0.10180374,69896.0,69886.0,0.014315]
[1771090247761,0.10180374,69896.0,69885.0,0.028675]
[1771090248352,0.10180374,69896.0,69885.0,0.01436]
[1771090248657,0.01436,69896.0,69885.0,0.028675]
[1771090249472,0.01436,69896.0,69885.0,0.01436]
[1771090250660,0.01436,69896.0,69887.0,0.014315]
[1771090250963,0.1432,69909.0,69901.0,0.014312]
[1771090251158,0.1432,69909.0,69895.0,0.01436]
[1771090251159,0.01436,69908.0,69895.0,0.01436]
[1771090251463,0.10180374,69908.0,69896.0,0.01436]
[1771090253062,0.10180374,69908.0,69880.0,0.014316]
[1771090253261,0.10180374,69908.0,69884.0,0.014315]
[1771090253566,0.10180374,69908.0,69883.0,0.014316]
[1771090254667,0.10180374,69908.0,69883.0,0.028631]
[1771090255170,0.10180374,69908.0,69884.0,0.014315]
[1771090256177,0.08744374,69906.0,69885.0,0.014315]
[1771090256473,0.08744374,69906.0,69884.0,0.014315]
[1771090256474,0.08744374,69904.0,69881.0,0.01436]
[1771090256675,0.08744374,69902.0,69881.0,0.01436]
[1771090256874,0.08744374,69900.0,69881.0,0.01436]
[1771090257175,0.08744374,69898.0,69881.0,0.01436]
[1771090258370,0.08744374,69898.0,69881.0,0.028676]
[1771090258973,0.08744374,69898.0,69871.0,0.09170606]
[1771090259176,0.08744374,69898.0,69881.0,0.014316]
[1771090259364,0.08744374,69898.0,69882.0,0.01436]
[1771090259562,0.08744374,69898.0,69884.0,0.014315]
[1771090260372,0.01436,69899.0,69888.0,0.014314]
[1771090260665,0.1432,69901.0,69898.0,0.014312]
[1771090260865,0.1432,69909.0,69906.0,0.014311]
[1771090261076,0.01436,69909.0,69905.0,0.014311]
[1771090261267,0.01436,69909.0,69903.0,0.014311]
[1771090261667,0.01436,69909.0,69901.0,0.028672]
[1771090262176,0.01436,69909.0,69901.0,0.01436]
[1771090263875,0.08744374,69920.0,69904.0,0.014311]
[1771090264180,0.08744374,69918.0,69904.0,0.014311]
[1771090264371,0.1432,69917.0,69904.0,0.014311]
[1771090264572,0.1432,69917.0,69906.0,0.014311]
[1771090264769,0.1432,69917.0,69905.0,0.014311]
[1771090264975,0.1432,69917.0,69907.0,0.014311]
[1771090265176,0.1432,69917.0,69906.0,0.01436]
[1771090265374,0.1432,69923.0,69918.0,0.014308]
[1771090265679,0.01436,69927.0,69918.0,0.014308]
[1771090266281,0.01436,69927.0,69917.0,0.014309]
[1771090266481,0.014307,69924.0,69917.0,0.014309]
[1771090266684,0.028614,69924.0,69917.0,0.014309]
[1771090266882,0.014308,69923.0,69917.0,0.014309]
[1771090267282,0.014307,69924.0,69918.0,0.014308]
[1771090267485,0.014307,69927.0,69919.0,0.014308]
[1771090267681,0.014307,69925.0,69920.0,0.01436]
[1771090268090,0.014308,69923.0,69920.0,0.01436]
[1771090269087,0.014306,69928.0,69922.0,0.014307]
[1771090269386,0.014306,69929.0,69922.0,0.014307]
[1771090269582,0.028612,69929.0,69922.0,0.014307]
[1771090269791,0.171866,69931.0,69921.0,0.014308]
[1771090270086,0.171866,69931.0,69924.0,0.014307]
[1771090270482,0.014307,69925.0,69912.0,0.014309]
[1771090270686,0.014307,69927.0,69920.0,0.014308]
[1771090270890,0.014307,69927.0,69921.0,0.01436]
[1771090271187,0.014307,69925.0,69921.0,0.01436]
[1771090272186,0.014307,69926.0,69921.0,0.01436]
[1771090272784,0.014307,69925.0,69921.0,0.01436]
[1771090273794,0.014307,69925.0,69920.0,0.014308]
[1771090274090,0.014307,69925.0,69922.0,0.01436]
[1771090274786,0.014308,69921.0,69910.0,0.01431]
[1771090275091,0.014308,69920.0,69914.0,0.014309]
[1771090275288,0.014308,69919.0,69915.0,0.01436]
[1771090275791,0.014308,69922.0,69916.0,0.028669]
[1771090276088,0.014308,69922.0,69916.0,0.01436]
[1771090276385,0.014308,69921.0,69916.0,0.01436]
[1771090276592,0.014308,69920.0,69916.0,0.01436]
[1771090276786,0.014308,69920.0,69915.0,0.028618]
[1771090277091,0.014308,69920.0,69916.0,0.01436]
[1771090277784,0.014308,69920.0,69914.0,0.014309]
[1771090277989,0.014308,69918.0,69917.0,0.01436]
[1771090278190,0.014309,69917.0,69913.0,0.014309]
[1771090278487,0.014309,69917.0,69890.0,0.42650323]
[1771090278488,0.08424277,69912.0,69899.0,0.14316]
[1771090278692,0.014307,69924.0,69890.0,0.10690404]
[1771090278693,0.08424277,69906.0,69894.0,0.014313]
[1771090278883,0.014312,69898.0,69895.0,0.01436]
[1771090279079,0.014312,69901.0,69891.0,0.014314]
[1771090279285,0.014312,69902.0,69897.0,0.014313]
[1771090279485,0.014311,69903.0,69898.0,0.014312]
[1771090279685,0.014311,69903.0,69896.0,0.014313]
[1771090279888,0.014312,69900.0,69896.0,0.014313]
[1771090280083,0.014312,69900.0,69895.0,0.014313]
[1771090280482,0.014312,69899.0,69894.0,0.014313]
[1771090280681,0.014312,69900.0,69893.0,0.014313]
[1771090281090,0.014312,69900.0,69895.0,0.014313]
[1771090281283,0.014312,69899.0,69895.0,0.014313]
[1771090281487,0.014313,69898.0,69895.0,0.01436]
[1771090282793,0.014313,69898.0,69894.0,0.01436]
[1771090283281,0.014312,69901.0,69895.0,0.014313]
[1771090283486,0.014312,69902.0,69897.0,0.014313]
[1771090285192,0.014313,69897.0,69890.0,0.01436]
[1771090285496,0.08424277,69903.0,69892.0,0.014314]
[1771090285690,0.014314,69890.0,69884.0,0.014315]
[1771090285891,0.014314,69892.0,69886.0,0.014315]
[1771090286092,0.014314,69893.0,69888.0,0.014314]
[1771090286492,0.014314,69891.0,69886.0,0.014315]
[1771090287288,0.014313,69896.0,69887.0,0.014315]
[1771090287483,0.014314,69891.0,69886.0,0.014315]
[1771090287688,0.09855577,69896.0,69885.0,0.01436]
[1771090287995,0.014314,69889.0,69885.0,0.01436]
[1771090288687,0.014314,69889.0,69885.0,0.028675]
[1771090288894,0.014314,69891.0,69887.0,0.014315]
[1771090289288,0.014314,69893.0,69888.0,0.014315]
[1771090290196,0.014314,69893.0,69887.0,0.014315]
[1771090290795,0.014314,69892.0,69885.0,0.01436]
[1771090291191,0.014314,69892.0,69887.0,0.014315]
[1771090291595,0.014314,69893.0,69888.0,0.014314]
[1771090292886,0.014314,69893.0,69888.0,0.028628]
[1771090293086,0.028673,69896.0,69892.0,0.014314]
[1771090293087,0.01436,69896.0,69892.0,0.014314]
[1771090293495,0.01436,69896.0,69892.0,0.028628]
[1771090293799,0.01436,69896.0,69892.0,0.014314]
[1771090294093,0.01436,69896.0,69884.0,0.014315]
[1771090294094,0.14316,69908.0,69901.0,0.014312]
[1771090294292,0.014311,69906.0,69901.0,0.014312]
[1771090294486,0.014311,69906.0,69900.0,0.014312]
[1771090294690,0.01436,69907.0,69902.0,0.014312]
[1771090294891,0.01436,69907.0,69903.0,0.014311]
[1771090295089,0.171831,69908.0,69901.0,0.014312]
[1771090295293,0.01431,69910.0,69903.0,0.014311]
[1771090295493,0.01436,69909.0,69906.0,0.014311]
[1771090295688,0.042979,69914.0,69906.0,0.028671]
[1771090295890,0.01431,69913.0,69907.0,0.014311]
[1771090296297,0.042979,69914.0,69910.0,0.01431]
[1771090296597,0.014309,69913.0,69908.0,0.01431]
[1771090296896,0.042979,69914.0,69908.0,0.01431]
[1771090297096,0.014309,69913.0,69907.0,0.014311]
[1771090297291,0.028619,69913.0,69907.0,0.014311]
[1771090297493,0.014311,69907.0,69898.0,0.014312]
[1771090297693,0.014311,69905.0,69900.0,0.014312]
[1771090298097,0.014311,69905.0,69899.0,0.171832]
[1771090298398,0.014311,69905.0,69900.0,0.014312]
[1771090298598,0.014311,69906.0,69901.0,0.014312]
[1771090298799,0.014311,69906.0,69902.0,0.01436]
[1771090299592,0.014311,69906.0,69902.0,0.028672]
[1771090299800,0.014311,69906.0,69902.0,0.01436]
[1771090300594,0.014311,69908.0,69903.0,0.01436]
[1771090300796,0.014311,69907.0,69903.0,0.01436]
[1771090301599,0.014311,69905.0,69902.0,0.01436]
[1771090301798,0.014311,69905.0,69899.0,0.014312]
[1771090302101,0.014311,69905.0,69900.0,0.01436]
[1771090302297,0.014311,69905.0,69901.0,0.014312]
[1771090302495,0.014311,69907.0,69902.0,0.014312]
[1771090302893,0.01436,69911.0,69901.0,0.014312]
[1771090303100,0.01436,69910.0,69909.0,0.01431]
[1771090303301,0.14316,69916.0,69912.0,0.01431]
[1771090303701,0.014308,69922.0,69912.0,0.01436]
[1771090303903,0.028618,69917.0,69912.0,0.01436]
[1771090304205,0.01436,69918.0,69912.0,0.014309]
[1771090304397,0.01436,69918.0,69914.0,0.014309]
[1771090304600,0.01436,69918.0,69915.0,0.014309]
[1771090304908,0.014307,69923.0,69916.0,0.014309]
[1771090305096,0.005,69951.0,69917.0,0.10219764]
[1771090305097,0.14316,69927.0,69917.0,0.10219764]
[1771090305401,0.14316,69927.0,69922.0,0.028616]
[1771090305601,0.14316,69937.0,69923.0,0.028667]
[1771090305801,0.014306,69931.0,69924.0,0.01436]
[1771090306401,0.08566405,69946.0,69926.0,0.014307]
[1771090306603,0.014306,69930.0,69924.0,0.028667]
[1771090306793,0.028612,69930.0,69924.0,0.028667]
[1771090306999,0.014307,69927.0,69920.0,0.014308]
[1771090307294,0.014306,69929.0,69923.0,0.014307]
[1771090307806,0.014306,69931.0,69925.0,0.014307]
[1771090308003,0.014306,69929.0,69924.0,0.014307]
[1771090308209,0.014307,69926.0,69921.0,0.01436]
[1771090308406,0.028614,69927.0,69922.0,0.014308]
[1771090308910,0.01436,69930.0,69923.0,0.014307]
[1771090309608,0.01436,69930.0,69925.0,0.014307]
[1771090309803,0.028666,69930.0,69926.0,0.014307]
[1771090310003,0.01436,69930.0,69927.0,0.014307]
[1771090310204,0.01436,69930.0,69924.0,0.01436]
[1771090310406,0.014306,69929.0,69925.0,0.014307]
[1771090310610,0.014306,69929.0,69924.0,0.01436]
[1771090310912,0.014306,69929.0,69923.0,0.01436]
[1771090311513,0.01436,69930.0,69923.0,0.028667]
[1771090312106,0.10002405,69930.0,69917.0,0.014309]
[1771090312302,0.10002405,69930.0,69918.0,0.01436]
[1771090312508,0.014308,69922.0,69918.0,0.01436]
[1771090312708,0.10002405,69930.0,69914.0,0.157469]
[1771090312709,0.014308,69919.0,69914.0,0.014309]
[1771090313015,0.014308,69918.0,69915.0,0.01436]
[1771090314409,0.014307,69925.0,69920.0,0.014308]
[1771090315216,0.01436,69926.0,69915.0,0.01436]
[1771090315815,0.014308,69918.0,69914.0,0.014309]
[1771090316114,0.014308,69919.0,69915.0,0.01436]
[1771090316311,0.014308,69919.0,69914.0,0.014309]
[1771090316511,0.014308,69919.0,69915.0,0.014309]
[1771090316711,0.014308,69919.0,69913.0,0.014309]
[1771090316916,0.014308,69919.0,69914.0,0.028669]
[1771090317105,0.014308,69919.0,69915.0,0.01436]
[1771090317410,0.014308,69919.0,69913.0,0.014309]
[1771090317715,0.014308,69919.0,69914.0,0.014309]
[1771090317912,0.014308,69919.0,69915.0,0.01436]
[1771090318110,0.014308,69918.0,69915.0,0.01436]
[1771090318416,0.01431,69911.0,69907.0,0.01436]
[1771090318605,0.01431,69910.0,69908.0,0.01436]
[1771090318810,0.01431,69911.0,69908.0,0.01436]
[1771090319318,0.01436,69920.0,69908.0,0.01436]
[1771090319507,0.09997005,69930.0,69908.0,0.10219764]
[1771090319713,0.014308,69921.0,69916.0,0.014309]
[1771090320412,0.014308,69921.0,69917.0,0.014309]
[1771090320714,0.014308,69921.0,69916.0,0.014309]
[1771090321012,0.028668,69923.0,69921.0,0.014308]
[1771090321013,0.01436,69923.0,69921.0,0.014308]
[1771090321218,0.01436,69923.0,69922.0,0.014308]
[1771090321517,0.01436,69926.0,69923.0,0.014307]
[1771090322119,0.01436,69926.0,69922.0,0.014308]
[1771090322518,0.01436,69926.0,69921.0,0.014308]
[1771090324224,0.01436,69926.0,69922.0,0.014308]
[1771090325211,0.014306,69932.0,69923.0,0.014307]
[1771090325417,0.014306,69929.0,69923.0,0.028614]
[1771090325721,0.014306,69930.0,69925.0,0.014307]
[1771090327716,0.014306,69929.0,69921.0,0.01436]
[1771090327917,0.014308,69923.0,69918.0,0.01436]
[1771090328925,0.014308,69923.0,69918.0,0.028668]
[1771090329329,0.014308,69921.0,69918.0,0.01436]
[1771090329516,0.014311,69907.0,69894.0,0.42650323]
[1771090329721,0.13720992,69934.0,69887.0,0.14312]
[1771090329722,0.014313,69895.0,69887.0,0.14312]
[1771090330022,0.014314,69894.0,69888.0,0.01436]
[1771090330218,0.014314,69894.0,69889.0,0.014314]
[1771090330519,0.014313,69895.0,69888.0,0.01436]
[1771090330520,0.014313,69897.0,69888.0,0.028675]
[1771090330725,0.014313,69894.0,69889.0,0.014314]
[1771090331716,0.014313,69894.0,69890.0,0.01436]
[1771090333027,0.014313,69895.0,69890.0,0.028674]
[1771090333526,0.014312,69899.0,69892.0,0.014314]
[1771090333728,0.014312,69900.0,69895.0,0.014313]
[1771090334025,0.01436,69905.0,69902.0,0.014312]
[1771090334522,0.028671,69907.0,69899.0,0.01436]
[1771090334722,0.014311,69905.0,69899.0,0.01436]
[1771090334925,0.014312,69901.0,69899.0,0.01436]
[1771090335132,0.014312,69899.0,69890.0,0.014314]
[1771090335330,0.014313,69898.0,69892.0,0.014314]
[1771090335530,0.01436,69903.0,69896.0,0.014313]
[1771090335831,0.014312,69901.0,69894.0,0.014313]
[1771090336025,0.014312,69899.0,69894.0,0.014313]
[1771090336223,0.014313,69898.0,69894.0,0.01436]
[1771090336727,0.014312,69901.0,69894.0,0.01436]
[1771090336927,0.014312,69900.0,69894.0,0.028673]
[1771090337629,0.014312,69899.0,69894.0,0.028673]
[1771090338123,0.014313,69897.0,69892.0,0.014314]
[1771090338324,0.014313,69897.0,69885.0,0.08982144]
[1771090338325,0.014314,69890.0,69885.0,0.014315]
[1771090338530,0.014314,69892.0,69887.0,0.014315]
[1771090339124,0.014314,69893.0,69887.0,0.014315]
[1771090339525,0.014314,69893.0,69888.0,0.014315]
[1771090339721,0.014314,69893.0,69889.0,0.014314]
[1771090339927,0.014313,69896.0,69887.0,0.014315]
[1771090340126,0.014313,69896.0,69888.0,0.014315]
[1771090340432,0.014313,69896.0,69890.0,0.014314]
[1771090340631,0.014313,69895.0,69890.0,0.014314]
[1771090340931,0.014313,69896.0,69889.0,0.01436]
[1771090340932,0.014314,69892.0,69889.0,0.01436]
[1771090341133,0.014314,69891.0,69889.0,0.01436]
[1771090341630,0.014314,69892.0,69889.0,0.01436]
[1771090341834,0.014314,69892.0,69888.0,0.01436]
[1771090343028,0.014314,69892.0,69885.0,0.014315]
[1771090343029,0.014314,69890.0,69885.0,0.014315]
[1771090343226,0.014315,69887.0,69883.0,0.01436]
[1771090343631,0.014315,69887.0,69878.0,0.014317]
[1771090343834,0.01442864,69889.0,69883.0,0.014315]
[1771090343835,0.014315,69888.0,69883.0,0.014315]
[1771090344340,0.014315,69885.0,69881.0,0.014316]
[1771090344526,0.014315,69886.0,69881.0,0.014316]
[1771090344927,0.014315,69887.0,69882.0,0.014316]
[1771090345230,0.014315,69888.0,69883.0,0.014316]
[1771090345628,0.02863,69888.0,69883.0,0.014316]
[1771090345829,0.014315,69887.0,69882.0,0.028676]
[1771090346533,0.014315,69887.0,69883.0,0.014316]
[1771090347731,0.014315,69885.0,69882.0,0.01436]
[1771090347931,0.014316,69883.0,69879.0,0.014316]
[1771090348234,0.014315,69884.0,69880.0,0.00864773]
[1771090349141,0.014315,69885.0,69880.0,0.02296373]
[1771090349430,0.014315,69885.0,69880.0,0.014316]
[1771090349635,0.014315,69884.0,69880.0,0.014316]
[1771090350138,0.01436,69886.0,69878.0,0.01436]
[1771090350337,0.014316,69881.0,69876.0,0.014317]
[1771090350630,0.014316,69881.0,69874.0,0.014317]
[1771090350631,0.014317,69877.0,69874.0,0.01436]
[1771090350836,0.00014468,69876.0,69873.0,0.014318]
[1771090351231,0.00014468,69876.0,69872.0,0.014318]
[1771090351432,0.00014468,69876.0,69871.0,0.028678]
[1771090351636,0.00014468,69876.0,69873.0,0.014318]
[1771090352131,0.00014468,69876.0,69872.0,0.014318]
[1771090352336,0.00014468,69876.0,69873.0,0.014318]
[1771090352731,0.00014468,69876.0,69871.0,0.014318]
[1771090353035,0.00014468,69876.0,69874.0,0.014317]
[1771090353635,0.00014468,69876.0,69873.0,0.014318]
[1771090353834,0.01446168,69876.0,69872.0,0.014318]
[1771090354239,0.01446168,69876.0,69871.0,0.014318]
[1771090354537,0.00014468,69876.0,69872.0,0.014318]
[1771090355541,0.00014468,69876.0,69874.0,0.014317]
[1771090355743,0.00014468,69876.0,69875.0,0.014317]
[1771090355943,0.00014468,69876.0,69874.0,0.014317]
[1771090355944,0.01436,69880.0,69878.0,0.014316]
[1771090356340,0.028676,69880.0,69875.0,0.014317]
[1771090358843,0.028676,69880.0,69875.0,0.028634]
[1771090359144,0.028676,69880.0,69875.0,0.014317]
[1771090359443,0.028676,69880.0,69874.0,0.014317]
[1771090360342,0.014316,69879.0,69874.0,0.014317]
[1771090361638,0.01436,69880.0,69876.0,0.014317]
[1771090361838,0.028676,69880.0,69875.0,0.014317]
[1771090362241,0.014317,69878.0,69873.0,0.014318]
[1771090362840,0.01436,69884.0,69874.0,0.09456293]
[1771090363054,0.014315,69888.0,69883.0,0.014315]
[1771090363243,0.1432,69889.0,69883.0,0.014315]
[1771090363444,0.014315,69889.0,69884.0,0.014315]
[1771090364349,0.014315,69888.0,69883.0,0.014315]
[1771090364742,0.014314,69890.0,69883.0,0.014315]
[1771090364943,0.014314,69889.0,69883.0,0.014315]
[1771090365447,0.014315,69885.0,69882.0,0.01436]
[1771090366348,0.014315,69884.0,69882.0,0.01436]
[1771090370445,0.014316,69883.0,69882.0,0.01436]
[1771090370852,0.014315,69884.0,69874.0,0.014317]
[1771090371048,0.014316,69880.0,69875.0,0.028677]
[1771090371352,0.014316,69880.0,69876.0,0.014317]
[1771090371548,0.014316,69881.0,69876.0,0.014317]
[1771090371750,0.01436,69887.0,69878.0,0.014317]
[1771090371751,0.014316,69883.0,69878.0,0.014317]
[1771090373454,0.014316,69881.0,69877.0,0.01436]
[1771090373645,0.014316,69881.0,69877.0,0.028677]
[1771090373852,0.014316,69882.0,69877.0,0.028677]
[1771090374051,0.014316,69883.0,69878.0,0.014317]
[1771090374353,0.014316,69883.0,69878.0,0.014316]
[1771090375045,0.014316,69883.0,69878.0,0.028632]
[1771090375250,0.014316,69882.0,69877.0,0.028677]
[1771090375748,0.014316,69882.0,69878.0,0.014316]
[1771090377057,0.014316,69883.0,69878.0,0.014316]
[1771090377756,0.014316,69882.0,69877.0,0.01436]
[1771090377952,0.014316,69882.0,69878.0,0.01440703]
[1771090378656,0.014316,69883.0,69878.0,0.01440703]
[1771090378856,0.01436,69887.0,69878.0,0.09465296]
[1771090379156,0.01436,69887.0,69886.0,0.014315]
[1771090379359,0.028674,69890.0,69885.0,0.014315]
[1771090379552,0.01436,69890.0,69884.0,0.014315]
[1771090379752,0.028674,69890.0,69885.0,0.014315]
[1771090380159,0.014314,69889.0,69885.0,0.014315]
[1771090380353,0.014314,69889.0,69883.0,0.01436]
[1771090380354,0.01436,69892.0,69884.0,0.014315]
[1771090380554,0.014314,69891.0,69886.0,0.014315]
[1771090380753,0.014314,69890.0,69885.0,0.014315]
[1771090380959,0.014315,69886.0,69883.0,0.01436]
[1771090381157,0.014315,69886.0,69879.0,0.014316]
[1771090381158,0.014316,69884.0,69879.0,0.014316]
[1771090381455,0.014315,69887.0,69881.0,0.01436]
[1771090381650,0.01436,69889.0,69887.0,0.014315]
[1771090381851,0.01436,69892.0,69888.0,0.014315]
[1771090382048,0.14251397,69906.0,69892.0,0.09456293]
[1771090382250,0.014311,69906.0,69900.0,0.014312]
[1771090382453,0.01436,69906.0,69902.0,0.014311]
[1771090382656,0.028671,69906.0,69900.0,0.014312]
[1771090383256,0.042982,69906.0,69900.0,0.014312]
[1771090383758,0.014311,69905.0,69900.0,0.014312]
[1771090384350,0.014312,69901.0,69897.0,0.01436]
[1771090384553,0.014312,69900.0,69897.0,0.01436]
[1771090384966,0.014312,69902.0,69897.0,0.01436]
[1771090385462,0.014312,69899.0,69897.0,0.01436]
[1771090386659,0.014312,69898.0,69897.0,0.01436]
[1771090386861,0.014312,69898.0,69869.0,0.13960724]
[1771090386862,0.08804123,69897.0,69875.0,0.09456293]
[1771090387057,0.014315,69886.0,69880.0,0.028632]
[1771090387258,0.014315,69885.0,69881.0,0.01436]
[1771090388258,0.014315,69884.0,69881.0,0.01436]
[1771090388460,0.014315,69888.0,69881.0,0.01436]
[1771090388662,0.014315,69885.0,69881.0,0.01436]
[1771090389366,0.014316,69884.0,69881.0,0.01436]
[1771090389560,0.014316,69883.0,69881.0,0.01436]
[1771090389960,0.014315,69884.0,69881.0,0.01436]
[1771090390161,0.014315,69885.0,69876.0,0.1432]
[1771090390162,0.014316,69880.0,69876.0,0.157517]
[1771090390359,0.014316,69881.0,69877.0,0.01436]
[1771090390664,0.028632,69882.0,69877.0,0.028677]
[1771090390865,0.014316,69882.0,69877.0,0.028677]
[1771090391263,0.014316,69882.0,69877.0,0.01436]
[1771090391466,0.014316,69881.0,69877.0,0.01436]
[1771090391665,0.014316,69882.0,69874.0,0.014317]
[1771090391968,0.014316,69883.0,69878.0,0.014316]
[1771090392368,0.014316,69881.0,69877.0,0.014317]
[1771090392662,0.014316,69879.0,69874.0,0.014317]
[1771090393071,0.014316,69880.0,69875.0,0.014317]
[1771090393370,0.01436,69880.0,69875.0,0.014317]
[1771090393662,0.014317,69878.0,69873.0,0.028678]
[1771090394760,0.014316,69879.0,69873.0,0.028678]
[1771090394961,0.028676,69880.0,69875.0,0.014317]
[1771090395366,0.014316,69879.0,69874.0,0.014317]
[1771090395565,0.028676,69880.0,69875.0,0.014317]
[1771090395966,0.042992,69880.0,69875.0,0.014317]
[1771090396166,0.028676,69880.0,69873.0,0.028677]
[1771090396365,0.014317,69878.0,69873.0,0.028677]
[1771090396572,0.028634,69878.0,69873.0,0.028677]
[1771090397366,0.014317,69877.0,69873.0,0.028677]
[1771090397570,0.014317,69877.0,69873.0,0.01436]
[1771090397772,0.01436,69880.0,69877.0,0.014317]
[1771090397963,0.028676,69880.0,69875.0,0.014317]
[1771090398166,0.014316,69879.0,69875.0,0.014317]
[1771090398471,0.014317,69878.0,69873.0,0.028678]
[1771090398770,0.014317,69878.0,69873.0,0.042996]
[1771090398975,0.014317,69878.0,69873.0,0.028678]
[1771090399976,0.014317,69878.0,69874.0,0.014317]
[1771090400182,0.014317,69878.0,69873.0,0.028678]
[1771090400471,0.014317,69878.0,69873.0,0.014318]
[1771090400665,0.014317,69877.0,69873.0,0.01436]
[1771090400972,0.014317,69877.0,69873.0,4.803e-05]
[1771090401268,0.014317,69875.0,69870.0,0.014318]
[1771090401565,0.014317,69875.0,69868.0,0.028679]
[1771090401566,0.01436,69877.0,69874.0,0.014317]
[1771090402167,0.01436,69877.0,69872.0,0.014318]
[1771090402367,0.01436,69877.0,69875.0,0.014317]
[1771090403774,0.01436,69877.0,69874.0,0.014317]
[1771090404773,0.014318,69872.0,69866.0,0.014319]
[1771090406271,0.014318,69872.0,69866.0,0.028638]
[1771090406580,0.014319,69868.0,69863.0,0.01432]
[1771090406876,0.014319,69868.0,69864.0,0.01436]
[1771090407474,0.014319,69869.0,69864.0,0.028679]